bitfinex-derivatives/quotes_SOLF0:USTF0_20250105
["timestamp","ask_amount","ask_price","bid_price","bid_amount"]
[1736046310970,7.17723084,216.88,216.81,7.17723084]
[1736046311372,7.17723084,216.88,216.85,2.306]
[1736046313971,7.17723084,216.9,216.85,2.306]
[1736046315978,7.17723084,216.9,216.86,2.3059]
[1736046316379,7.17723084,216.88,216.81,13.48219423]
[1736046316672,7.17723084,216.88,216.83,2.3062]
[1736046320482,7.17723084,216.88,216.84,2.3061]
[1736046325985,7.17723084,216.86,216.83,2.3062]
[1736046329686,2.3057,216.88,216.83,2.3062]
[1736046329882,7.17723084,216.86,216.83,2.3062]
[1736046332387,7.17723084,216.84,216.77,7.17723084]
[1736046332589,7.17723084,216.88,216.81,7.17723084]
[1736046333687,7.17723084,216.88,216.84,2.3061]
[1736046337787,2.58,216.93,216.85,7.17723084]
[1736046337986,9.75723084,216.93,216.87,7.17723084]
[1736046338191,7.17723084,216.93,216.87,7.17723084]
[1736046338491,7.17723084,216.93,216.88,2.3056]
[1736046338691,7.17723084,216.93,216.87,7.17723084]
[1736046339093,7.17723084,216.93,216.89,2.3056]
[1736046344690,7.17723084,216.93,216.91,2.3054]
[1736046344891,3.7629,216.96,216.87,7.17723084]
[1736046344892,7.17723084,216.95,216.87,7.17723084]
[1736046345395,4.0379,216.96,216.93,2.3052]
[1736046345595,7.17723084,216.97,216.91,7.17723084]
[1736046345791,7.17723084,216.99,216.91,7.17723084]
[1736046346493,7.17723084,216.99,216.94,2.3051]
[1736046348498,7.17723084,216.97,216.94,2.3051]
[1736046356904,7.17723084,216.95,216.94,2.3051]
[1736046359203,7.17723084,216.97,216.94,2.3051]
[1736046363107,1.4409,217.02,216.91,9.75723084]
[1736046363312,7.17723084,217.0,216.93,7.17723084]
[1736046363709,7.17723084,217.0,216.98,2.3046]
[1736046364110,7.17723084,217.01,216.93,7.17723084]
[1736046364508,7.17723084,217.01,216.99,2.3044]
[1736046364709,7.17723084,217.01,216.92,1.5032]
[1736046365010,7.17723084,216.96,216.88,7.17723084]
[1736046365209,2.8602,217.03,216.9,7.17723084]
[1736046365210,7.17723084,216.98,216.9,7.17723084]
[1736046366505,7.17723084,216.98,216.96,2.3048]
[1736046368517,7.17723084,216.98,216.89,1.5032]
[1736046368815,7.17723084,216.94,216.89,1.5032]
[1736046370512,7.17723084,216.94,216.91,2.3054]
[1736046378419,7.17723084,216.92,216.87,6.30496339]
[1736046378621,7.17723084,216.89,216.87,6.30496339]
[1736046379121,7.17723084,216.89,216.85,4.40827697]
[1736046379323,7.17723084,216.87,216.85,4.40827697]
[1736046380123,7.17723084,216.87,216.81,103.35280781]
[1736046380124,7.17723084,216.87,216.81,6.30496339]
[1736046380321,7.17723084,216.85,216.81,6.30496339]
[1736046380526,7.17723084,216.85,216.83,2.3062]
[1736046381728,7.17723084,216.85,216.81,8.61136339]
[1736046381927,7.17723084,216.83,216.81,8.61136339]
[1736046382116,7.17723084,216.83,216.81,2.3064]
[1736046388326,7.17723084,216.83,216.79,2.3066]
[1736046388826,7.17723084,216.83,216.77,25.21985355]
[1736046389128,7.17723084,216.83,216.8,2.3066]
[1736046390026,7.17723084,216.81,216.78,2.3067]
[1736046391629,7.17723084,216.79,216.78,2.3067]
[1736046392427,7.17723084,216.79,216.72,25.21985355]
[1736046392637,7.17723084,216.79,216.73,2.58]
[1736046392923,7.17723084,216.79,216.72,32.39708439]
[1736046393330,7.17723084,216.79,216.72,7.17723084]
[1736046394330,7.17723084,216.77,216.69,27.79985355]
[1736046394533,7.17723084,216.77,216.69,34.97708439]
[1736046394834,7.17723084,216.75,216.72,2.3074]
[1736046396528,7.17723084,216.75,216.73,2.3073]
[1736046398033,2.58,216.83,216.69,7.17723084]
[1736046398333,7.17723084,216.77,216.76,2.307]
[1736046403238,7.17723084,216.77,216.69,7.17723084]
[1736046403434,7.17723084,216.75,216.74,2.3071]
[1736046406232,7.17723084,216.77,216.76,2.307]
[1736046412739,1.4508,216.8,216.71,7.17723084]
[1736046412942,7.17723084,216.78,216.71,7.17723084]
[1736046414440,7.17723084,216.78,216.77,2.3069]
[1736046421844,7.17723084,216.78,216.7,16.06219423]
[1736046421845,7.17723084,216.78,216.7,8.88496339]
[1736046422049,7.17723084,216.74,216.7,6.30496339]
[1736046422852,7.17723084,216.74,216.68,50.29344325]
[1736046422853,7.17723084,216.74,216.73,2.3073]
[1736046423445,1.4508,216.8,216.76,2.307]
[1736046423651,7.17723084,216.77,216.7,7.17723084]
[1736046424048,7.17723084,216.75,216.69,6.30496339]
[1736046424648,7.17723084,216.75,216.7,4.4170938]
[1736046425251,7.17723084,216.75,216.69,25.21985355]
[1736046425646,3.7574,216.8,216.69,25.21985355]
[1736046425843,7.17723084,216.74,216.7,2.3076]
[1736046426047,7.17723084,216.74,216.7,6.30496339]
[1736046426754,1.4508,216.8,216.74,2.3071]
[1736046426944,7.17723084,216.76,216.7,6.30496339]
[1736046427150,7.17723084,216.76,216.71,4.4223282]
[1736046427351,7.17723084,216.76,216.75,2.3071]
[1736046428553,7.17723084,216.76,216.7,42.85282071]
[1736046429453,7.17723084,216.76,216.71,4.42384801]
[1736046430257,7.17723084,216.76,216.7,25.21985355]
[1736046430554,7.17723084,216.76,216.73,2.3073]
[1736046432554,7.17723084,216.76,216.75,2.3071]
[1736046434955,1.4508,216.8,216.71,2.58]
[1736046434956,7.17723084,216.78,216.71,2.58]
[1736046435152,7.17723084,216.78,216.77,2.3069]
[1736046438054,7.17723084,216.78,216.76,2.307]
[1736046438256,7.17723084,216.77,216.76,2.307]
[1736046442558,1.4869,216.86,216.81,2.3065]
[1736046442859,7.17723084,216.82,216.81,2.3065]
[1736046443960,7.17723084,216.82,216.8,2.3066]
[1736046444766,7.17723084,216.82,216.75,42.91386226]
[1736046444968,7.17723084,216.79,216.75,6.30496339]
[1736046445261,7.17723084,216.77,216.75,6.30496339]
[1736046445866,7.17723084,216.77,216.73,6.30496339]
[1736046446565,7.17723084,216.77,216.76,2.307]
[1736046448565,7.17723084,216.79,216.73,6.30496339]
[1736046448766,7.17723084,216.79,216.77,2.3068]
[1736046459674,7.17723084,216.79,216.75,2.3071]
[1736046459874,2.3065,216.81,216.75,2.3071]
[1736046459875,7.17723084,216.76,216.75,2.3071]
[1736046461382,7.17723084,216.76,216.72,6.30496339]
[1736046461581,7.17723084,216.76,216.74,2.3072]
[1736046461773,7.17723084,216.76,216.72,6.30496339]
[1736046461976,7.17723084,216.74,216.72,6.30496339]
[1736046463274,7.17723084,216.74,216.72,2.3074]
[1736046465380,6.266,216.78,216.72,2.3074]
[1736046465680,7.17723084,216.73,216.72,2.3074]
[1736046469180,3.9592,216.78,216.68,13.48219423]
[1736046469378,7.17723084,216.76,216.68,13.48219423]
[1736046470282,7.17723084,216.76,216.74,2.3072]
[1736046470478,2.58,216.78,216.74,2.3072]
[1736046470677,7.17723084,216.76,216.74,2.3072]
[1736046472783,7.17723084,216.76,216.7,7.17723084]
[1736046472985,7.17723084,216.76,216.75,2.3071]
[1736046473779,7.17723084,216.78,216.71,2.58]
[1736046473985,7.17723084,216.78,216.76,2.307]
[1736046477987,7.17723084,216.8,216.74,7.17723084]
[1736046478188,7.17723084,216.82,216.81,2.3064]
[1736046480791,7.17723084,216.82,216.74,13.48219423]
[1736046480995,7.17723084,216.78,216.74,6.30496339]
[1736046481394,7.17723084,216.78,216.77,2.3069]
[1736046482393,7.17723084,216.78,216.75,2.307]
[1736046482991,7.17723084,216.78,216.76,2.307]
[1736046485298,7.17723084,216.78,216.77,2.3069]
[1736046489001,7.17723084,216.78,216.72,4.0355]
[1736046490400,7.17723084,216.78,216.76,2.307]
[1736046501710,7.17723084,216.78,216.72,1.4555]
[1736046501909,7.17723084,216.78,216.77,2.3069]
[1736046506818,2.58,216.82,216.72,1.4555]
[1736046506819,7.17723084,216.8,216.78,2.3067]
[1736046508212,7.17723084,216.8,216.73,7.17723084]
[1736046508413,7.17723084,216.8,216.79,2.3067]
[1736046509819,2.3062,216.84,216.79,2.3067]
[1736046510019,7.17723084,216.8,216.79,2.3067]
[1736046513923,7.17723084,216.82,216.75,9.48423084]
[1736046514124,7.17723084,216.82,216.75,7.17723084]
[1736046515425,7.17723084,216.82,216.8,2.3065]
[1736046539337,2.7979,216.85,216.8,2.3065]
[1736046539539,7.17723084,216.83,216.81,2.3064]
[1736046542237,7.17723084,216.83,216.82,2.3064]
[1736046543744,7.17723084,216.83,216.76,6.30496339]
[1736046543943,7.17723084,216.8,216.76,8.88496339]
[1736046544335,7.17723084,216.78,216.76,6.30496339]
[1736046544541,2.58,216.77,216.74,50.29344325]
[1736046544737,2.58,216.77,216.73,27.11477065]
[1736046544738,7.17723084,216.75,216.73,50.29344325]
[1736046545840,7.17723084,216.75,216.7,2.3076]
[1736046546042,7.17723084,216.71,216.7,2.3076]
[1736046547841,4.8869,216.77,216.7,2.3076]
[1736046548042,7.17723084,216.71,216.7,2.3076]
[1736046549648,7.17723084,216.74,216.73,2.3073]
[1736046553349,7.17723084,216.74,216.71,2.3075]
[1736046553549,7.17723084,216.72,216.71,2.3075]
[1736046556450,7.17723084,216.74,216.71,2.3075]
[1736046560052,7.17723084,216.74,216.72,2.3074]
[1736046564152,2.58,216.77,216.67,7.17723084]
[1736046564356,2.58,216.77,216.69,7.17723084]
[1736046564555,9.75723084,216.77,216.69,7.17723084]
[1736046565657,9.75723084,216.77,216.73,2.3072]
[1736046567359,7.17723084,216.75,216.73,2.3072]
[1736046572957,7.17723084,216.75,216.69,7.17723084]
[1736046573262,38.7259775,216.82,216.71,7.17723084]
[1736046573561,7.17723084,216.79,216.71,7.17723084]
[1736046574362,2.58,216.81,216.77,2.3068]
[1736046574363,9.75723084,216.81,216.77,2.3068]
[1736046576563,9.75723084,216.81,216.78,2.3068]
[1736046576958,7.17723084,216.81,216.78,2.3068]
[1736046577165,7.17723084,216.82,216.79,2.3067]
[1736046577463,2.58,216.83,216.79,2.3067]
[1736046577663,9.75723084,216.83,216.79,2.3067]
[1736046581868,9.75723084,216.83,216.75,7.17723084]
[1736046582067,9.75723084,216.83,216.8,2.3065]
[1736046588369,7.17723084,216.81,216.8,2.3065]
[1736046596885,7.17723084,216.81,216.79,2.3067]
[1736046599985,2.3061,216.84,216.79,2.3067]
[1736046600187,7.17723084,216.82,216.79,2.3067]
[1736046610597,7.17723084,216.84,216.8,2.3065]
[1736046611097,7.17723084,216.84,216.75,7.17723084]
[1736046611300,7.17723084,216.84,216.77,2.3068]
[1736046611500,7.17723084,216.84,216.77,7.17723084]
[1736046612596,7.17723084,216.84,216.8,2.3065]
[1736046612899,2.3058,216.88,216.79,7.17723084]
[1736046613192,12.06303084,216.88,216.81,7.17723084]
[1736046614399,12.06303084,216.88,216.83,2.3062]
[1736046614599,12.06303084,216.88,216.81,7.17723084]
[1736046615194,17.01197445,216.96,216.81,7.17723084]
[1736046615389,7.17723084,216.89,216.85,2.306]
[1736046615590,7.17723084,216.89,216.83,7.17723084]
[1736046615893,7.17723084,216.91,216.83,7.17723084]
[1736046617198,7.17723084,216.91,216.83,9.75723084]
[1736046618499,7.17723084,216.91,216.87,2.3058]
[1736046620299,7.17723084,216.91,216.83,9.75723084]
[1736046620495,7.17723084,216.89,216.83,2.58]
[1736046620695,7.17723084,216.87,216.81,1.4192]
[1736046621497,7.17723084,216.87,216.83,2.3062]
[1736046623195,7.17723084,216.85,216.78,7.17723084]
[1736046623497,7.17723084,216.83,216.76,7.17723084]
[1736046624499,7.17723084,216.83,216.78,2.3068]
[1736046626499,7.17723084,216.83,216.76,7.17723084]
[1736046626698,7.17723084,216.83,216.79,2.3066]
[1736046633103,7.17723084,216.85,216.8,2.3066]
[1736046636308,4.8859,216.86,216.81,2.3065]
[1736046636602,7.17723084,216.85,216.81,2.3065]
[1736046639510,7.17723084,216.85,216.76,7.17723084]
[1736046639706,7.17723084,216.85,216.82,2.3063]
[1736046641612,7.17723084,216.85,216.83,2.3062]
[1736046654420,2.58,216.86,216.84,2.3061]
[1736046654627,7.17723084,216.87,216.84,2.3061]
[1736046655921,10.09893084,216.89,216.85,2.306]
[1736046656523,10.09893084,216.89,216.8,7.17723084]
[1736046657126,7.17723084,216.89,216.85,2.3059]
[1736046657331,2.58,216.9,216.85,2.3059]
[1736046657522,7.17723084,216.89,216.82,7.17723084]
[1736046657722,7.17723084,216.89,216.86,2.3059]
[1736046660122,7.17723084,216.91,216.87,2.3058]
[1736046660622,7.17723084,216.89,216.87,2.3058]
[1736046668132,7.17723084,216.9,216.87,2.3058]
[1736046668326,7.17723084,216.9,216.82,7.17723084]
[1736046668532,7.17723084,216.9,216.88,2.3057]
[1736046668933,2.58,216.93,216.9,2.3054]
[1736046669135,9.75723084,216.94,216.9,2.3054]
[1736046669735,2.58,216.94,216.9,2.3054]
[1736046670131,9.75723084,216.94,216.9,2.3054]
[1736046670938,7.17723084,216.94,216.91,2.3053]
[1736046671141,7.17723084,216.94,216.88,7.17723084]
[1736046672139,7.17723084,216.92,216.85,2.58]
[1736046673042,2.58,216.95,216.85,2.58]
[1736046673241,7.17723084,216.91,216.85,2.58]
[1736046674542,7.17723084,216.91,216.87,2.3058]
[1736046674744,7.17723084,216.89,216.87,2.3058]
[1736046676645,2.3052,216.94,216.87,2.3058]
[1736046676842,7.17723084,216.92,216.87,2.3058]
[1736046677046,7.17723084,216.94,216.9,2.3055]
[1736046677343,7.17723084,216.94,216.86,7.17723084]
[1736046678443,7.17723084,216.94,216.9,2.3055]
[1736046679244,7.17723084,216.94,216.88,7.17723084]
[1736046679435,7.17723084,216.96,216.88,7.17723084]
[1736046679635,7.17723084,216.98,216.9,7.17723084]
[1736046679838,1.4249,217.0,216.92,7.17723084]
[1736046680037,60.49760695,217.09,216.92,7.17723084]
[1736046680038,2.58,217.02,216.94,7.17723084]
[1736046680238,7.17723084,217.02,216.96,7.17723084]
[1736046681439,7.17723084,217.02,216.96,9.48203084]
[1736046681646,7.17723084,217.02,216.96,2.3048]
[1736046682247,7.17723084,217.0,216.96,2.3048]
[1736046684053,7.17723084,217.02,216.94,7.17723084]
[1736046684348,7.17723084,217.02,216.97,2.3047]
[1736046687152,9.48143084,217.02,216.95,2.3049]
[1736046687747,9.48143084,217.02,216.96,2.3049]
[1736046690355,7.17723084,217.0,216.93,7.17723084]
[1736046690659,7.17723084,217.0,216.95,2.305]
[1736046691357,7.17723084,216.98,216.93,2.3051]
[1736046697658,2.3046,216.99,216.93,2.3051]
[1736046697855,7.17723084,216.98,216.93,2.3051]
[1736046701855,7.17723084,216.98,216.94,2.3051]
[1736046702948,2.3046,216.99,216.94,2.3051]
[1736046703151,9.48183084,216.99,216.94,2.3051]
[1736046703660,7.17723084,216.99,216.91,7.17723084]
[1736046703861,7.17723084,216.99,216.95,2.305]
[1736046707257,7.17723084,216.97,216.89,7.17723084]
[1736046707454,7.17723084,216.95,216.87,7.17723084]
[1736046707961,7.17723084,216.95,216.91,2.3053]
[1736046708663,7.17723084,216.95,216.87,7.17723084]
[1736046709062,7.17723084,216.93,216.85,7.17723084]
[1736046710662,7.17723084,216.91,216.82,1.426]
[1736046710861,7.17723084,216.91,216.82,8.60323084]
[1736046711063,9.48273084,216.91,216.85,2.306]
[1736046713162,7.17723084,216.91,216.84,7.17723084]
[1736046713370,2.58,216.96,216.83,2.3062]
[1736046713371,7.17723084,216.89,216.83,2.3062]
[1736046713965,7.17723084,216.89,216.81,2.58]
[1736046713966,7.17723084,216.89,216.84,2.3061]
[1736046716868,9.48273084,216.9,216.84,2.3061]
[1736046718570,2.3055,216.9,216.84,2.3061]
[1736046718770,2.3055,216.9,216.81,9.75723084]
[1736046718967,9.48273084,216.9,216.85,2.306]
[1736046719165,2.3055,216.9,216.85,2.306]
[1736046719367,9.48273084,216.9,216.85,2.306]
[1736046719882,2.3055,216.9,216.85,2.306]
[1736046720071,9.75723084,216.91,216.86,2.3059]
[1736046721173,12.06263084,216.91,216.86,2.3059]
[1736046723978,9.48263084,216.91,216.86,2.3059]
[1736046724177,12.06263084,216.91,216.86,2.3059]
[1736046732279,4.8854,216.91,216.86,2.3059]
[1736046732678,7.17723084,216.9,216.86,2.3059]
[1736046751097,2.3054,216.91,216.86,2.3059]
[1736046751293,9.48263084,216.91,216.86,2.3059]
[1736046752497,2.3055,216.9,216.86,2.3059]
[1736046757098,2.3055,216.9,216.83,7.17723084]
[1736046757399,2.3055,216.9,216.85,2.306]
[1736046763000,2.3049,216.96,216.91,2.3054]
[1736046763200,2.3049,216.96,216.91,7.17723084]
[1736046764095,7.17723084,216.97,216.91,7.17723084]
[1736046764293,7.17723084,216.97,216.92,2.3053]
[1736046764294,9.48203084,216.97,216.92,2.3053]
[1736046764503,7.17723084,216.97,216.91,7.17723084]
[1736046764700,7.17723084,216.97,216.93,2.3052]
[1736046765103,7.17723084,217.0,216.93,7.17723084]
[1736046765501,7.17723084,217.0,216.96,2.3049]
[1736046765704,7.17723084,217.02,216.95,7.17723084]
[1736046766998,7.17723084,217.02,216.98,2.3046]
[1736046767603,9.48123084,217.04,216.98,2.3046]
[1736046771511,2.304,217.04,216.98,2.3046]
[1736046771811,7.17723084,217.03,216.98,2.3046]
[1736046772806,7.17723084,217.03,216.97,7.17723084]
[1736046773106,7.17723084,217.03,216.99,2.3045]
[1736046780821,7.17723084,217.03,216.97,2.3047]
[1736046781025,7.17723084,217.01,216.93,11.53983084]
[1736046781224,7.17723084,217.01,216.93,14.09983084]
[1736046781728,7.17723084,217.01,216.93,9.73723084]
[1736046782426,9.48153084,217.01,216.96,2.3048]
[1736046783229,7.17723084,217.01,216.96,2.3048]
[1736046788235,7.17723084,216.99,216.92,2.56]
[1736046788429,7.17723084,216.99,216.94,2.305]
[1736046789635,9.48183084,216.99,216.94,2.305]
[1736046793839,7.17723084,216.95,216.86,4.2171]
[1736046794132,7.17723084,216.95,216.86,8.58063084]
[1736046794331,7.17723084,216.95,216.88,2.3056]
[1736046794530,9.48223084,216.95,216.86,8.58063084]
[1736046795435,7.17723084,216.93,216.89,2.3056]
[1736046795937,7.17723084,216.91,216.87,2.3057]
[1736046796538,7.17723084,216.91,216.83,2.56]
[1736046796739,7.17723084,216.89,216.82,7.17723084]
[1736046798534,7.17723084,216.89,216.84,2.3061]
[1736046801340,7.17723084,216.89,216.85,2.306]
[1736046801942,7.17723084,216.89,216.86,2.3059]
[1736046802145,7.17723084,216.91,216.86,2.3059]
[1736046804246,7.17723084,216.91,216.87,2.3058]
[1736046804839,2.56,216.93,216.84,7.17723084]
[1736046805044,7.17723084,216.92,216.89,2.3056]
[1736046807849,7.17723084,216.92,216.84,7.17723084]
[1736046808042,7.17723084,216.92,216.9,2.3055]
[1736046809649,7.17723084,216.92,216.84,7.17723084]
[1736046811449,7.17723084,216.92,216.89,2.3055]
[1736046812551,7.17723084,216.94,216.91,2.3054]
[1736046812853,7.17723084,216.94,216.86,7.17723084]
[1736046813046,7.17723084,216.94,216.89,2.3055]
[1736046813941,7.17723084,216.94,216.86,7.17723084]
[1736046814142,7.17723084,216.94,216.9,2.3055]
[1736046818658,7.17723084,216.92,216.8,1.4133]
[1736046818856,7.17723084,216.89,216.81,7.17723084]
[1736046820463,7.17723084,216.89,216.85,2.306]
[1736046823463,7.17723084,216.89,216.86,2.3059]
[1736046825569,2.56,216.9,216.86,2.3059]
[1736046826764,7.17723084,216.91,216.86,2.3059]
[1736046826963,7.17723084,216.91,216.87,2.3058]
[1736046831967,2.56,216.92,216.9,2.3055]
[1736046832267,2.56,216.92,216.87,7.17723084]
[1736046832465,7.17723084,216.94,216.87,7.17723084]
[1736046832668,7.17723084,216.94,216.91,2.3053]
[1736046832868,2.56,216.96,216.91,2.3053]
[1736046832869,9.73723084,216.96,216.91,2.3053]
[1736046833172,7.17723084,216.96,216.91,2.3053]
[1736046833672,7.17723084,216.96,216.92,2.3053]
[1736046834070,11.18503084,216.97,216.94,2.3051]
[1736046834269,4.0078,216.97,216.94,2.3051]
[1736046834872,2.56,216.97,216.94,2.3051]
[1736046836865,8.61423084,216.98,216.94,2.3051]
[1736046839474,7.17723084,216.96,216.94,2.3051]
[1736046840472,7.17723084,216.96,216.91,2.3054]
[1736046840771,7.17723084,216.94,216.87,11.22343084]
[1736046840971,7.17723084,216.94,216.9,2.3054]
[1736046844588,7.17723084,216.96,216.87,8.66343084]
[1736046844885,7.17723084,216.96,216.89,7.17723084]
[1736046846580,7.17723084,216.96,216.92,2.3053]
[1736046849385,7.17723084,216.96,216.89,7.17723084]
[1736046849583,7.17723084,216.96,216.93,2.3051]
[1736046852088,7.17723084,216.96,216.87,8.66343084]
[1736046852289,7.17723084,216.94,216.87,8.66343084]
[1736046854585,7.17723084,216.96,216.92,2.3053]
[1736046858195,7.17723084,216.96,216.87,8.66343084]
[1736046858391,7.17723084,216.96,216.94,2.3051]
[1736046861290,7.17723084,216.96,216.92,2.3052]
[1736046862189,7.17723084,216.96,216.93,2.3052]
[1736046862694,7.17723084,216.96,216.91,2.3053]
[1736046864499,7.17723084,216.96,216.87,1.4862]
[1736046864700,7.17723084,216.96,216.92,2.3053]
[1736046866202,7.17723084,216.96,216.88,7.17723084]
[1736046866403,8.64033084,217.0,216.95,2.305]
[1736046867299,8.64033084,217.0,216.96,2.3048]
[1736046868994,7.17723084,216.99,216.96,2.3048]
[1736046878508,7.17723084,217.02,216.99,2.3045]
[1736046878708,7.17723084,217.02,216.95,7.17723084]
[1736046880511,7.17723084,217.02,217.0,2.3044]
[1736046892221,7.17723084,217.04,217.0,2.3044]
[1736046894418,7.17723084,217.04,216.97,7.17723084]
[1736046894617,7.17723084,217.04,217.0,2.3044]
[1736046896721,9.48123084,217.04,216.98,2.3046]
[1736046897017,7.17723084,217.04,216.97,7.17723084]
[1736046897621,9.48083084,217.08,217.03,2.3041]
[1736046898120,9.48083084,217.08,217.01,7.17723084]
[1736046898121,7.17723084,217.08,217.01,7.17723084]
[1736046898321,7.17723084,217.08,217.05,2.3039]
[1736046900425,2.3034,217.11,217.03,7.17723084]
[1736046900625,7.17723084,217.1,217.06,2.3038]
[1736046901722,2.3032,217.12,217.07,2.3037]
[1736046901921,7.17723084,217.12,217.05,7.17723084]
[1736046903626,7.17723084,217.12,217.08,2.3036]
[1736046905027,3.7548,217.14,217.08,2.3036]
[1736046905226,7.17723084,217.12,217.08,2.3036]
[1736046906922,7.17723084,217.1,217.01,10.00403084]
[1736046907132,7.17723084,217.07,217.01,2.8268]
[1736046907323,7.17723084,217.07,217.0,7.17723084]
[1736046907927,2.3038,217.06,217.01,2.3043]
[1736046908329,7.17723084,217.07,217.01,2.3043]
[1736046908728,9.48093084,217.08,217.02,2.3042]
[1736046910831,7.17723084,217.08,217.04,2.3039]
[1736046911635,7.17723084,217.08,217.05,2.3039]
[1736046912231,9.73723084,217.1,217.06,2.3038]
[1736046914629,9.73723084,217.1,217.04,7.17723084]
[1736046915538,1.4437,217.15,217.04,7.17723084]
[1736046915830,7.17723084,217.12,217.04,7.17723084]
[1736046916336,7.17723084,217.12,217.1,2.3034]
[1736046918537,2.56,217.13,217.11,2.3033]
[1736046918738,2.56,217.13,217.06,7.17723084]
[1736046918941,7.17723084,217.14,217.06,7.17723084]
[1736046920139,4.8626,217.17,217.06,7.17723084]
[1736046920340,7.17723084,217.14,217.1,2.3033]
[1736046921043,7.17723084,217.12,217.08,2.3036]
[1736046921340,7.17723084,217.1,216.99,6.36797932]
[1736046921642,7.17723084,217.1,217.03,7.17723084]
[1736046922340,7.17723084,217.1,217.06,2.3038]
[1736046924450,7.17723084,217.1,217.03,7.17723084]
[1736046924646,7.17723084,217.1,217.07,2.3037]
[1736046926149,7.17723084,217.1,217.01,2.56]
[1736046926542,7.17723084,217.1,217.03,7.17723084]
[1736046926843,7.17723084,217.1,217.05,2.3039]
[1736046931452,7.17723084,217.1,217.06,2.3038]
[1736046933059,7.17723084,217.1,217.03,7.17723084]
[1736046933259,7.17723084,217.1,217.07,2.3037]
[1736046935859,7.17723084,217.14,217.07,7.17723084]
[1736046936359,2.56,217.16,217.12,2.3032]
[1736046936558,7.17723084,217.15,217.12,2.3032]
[1736046940263,7.17723084,217.15,217.13,2.303]
[1736046941564,7.17723084,217.15,217.09,7.17723084]
[1736046941864,7.17723084,217.15,217.14,2.303]
[1736046945962,7.17723084,217.15,217.09,7.17723084]
[1736046946162,9.73723084,217.17,217.11,7.17723084]
[1736046946667,7.17723084,217.17,217.11,7.17723084]
[1736046947262,7.17723084,217.17,217.14,2.3029]
[1736046955170,7.17723084,217.17,217.11,7.17723084]
[1736046955478,7.17723084,217.19,217.15,2.3028]
[1736046956771,7.17723084,217.19,217.13,7.17723084]
[1736046957278,43.75041062,217.24,217.15,7.17723084]
[1736046957471,7.17723084,217.21,217.15,7.17723084]
[1736046957875,7.17723084,217.21,217.19,2.3024]
[1736046960477,2.3025,217.19,217.1,2.3033]
[1736046960673,7.17723084,217.17,217.1,9.73723084]
[1736046962175,7.17723084,217.19,217.12,7.17723084]
[1736046962578,7.17723084,217.21,217.14,7.17723084]
[1736046962773,7.17723084,217.22,217.18,2.3025]
[1736046963873,7.17723084,217.22,217.19,2.3024]
[1736046965380,7.17723084,217.22,217.16,7.17723084]
[1736046965577,50.92764146,217.24,217.2,2.3023]
[1736046967775,53.22954146,217.24,217.18,2.3024]
[1736046967977,53.22954146,217.24,217.16,7.17723084]
[1736046969579,53.22954146,217.24,217.19,2.3024]
[1736046981386,43.75041062,217.24,217.21,2.3022]
[1736046981585,7.17723084,217.26,217.2,7.17723084]
[1736046982497,7.17723084,217.26,217.21,2.3021]
[1736046984995,9.47893084,217.26,217.21,2.3021]
[1736046985295,7.17723084,217.26,217.2,7.17723084]
[1736046986387,2.3019,217.25,217.2,7.17723084]
[1736046986587,7.17723084,217.24,217.19,2.3024]
[1736046987502,9.47913084,217.24,217.19,2.3024]
[1736046989605,2.8613,217.31,217.13,2.56]
[1736046989606,7.17723084,217.2,217.13,2.56]
[1736046989902,7.17723084,217.16,217.11,25.48465411]
[1736046990098,9.47993084,217.16,217.11,25.48465411]
[1736046990504,9.47993084,217.16,217.1,2.3033]
[1736046991399,9.47993084,217.16,217.11,2.3033]
[1736046993609,7.17723084,217.14,217.09,2.3034]
[1736046994109,7.17723084,217.14,217.06,7.17723084]
[1736046994411,9.48023084,217.14,217.08,2.3036]
[1736046994709,9.48023084,217.14,217.08,7.17723084]
[1736046995110,7.17723084,217.14,217.08,7.17723084]
[1736046995299,7.17723084,217.14,217.09,2.3035]
[1736046998705,7.17723084,217.16,217.11,2.3033]
[1736046998901,7.17723084,217.16,217.1,7.17723084]
[1736046999108,7.17723084,217.18,217.1,7.17723084]
[1736046999307,7.17723084,217.18,217.1,9.73723084]
[1736047000412,7.17723084,217.18,217.13,2.303]
[1736047006512,4.3474,217.23,217.12,7.17723084]
[1736047006711,4.3474,217.23,217.16,7.17723084]
[1736047006910,11.52463084,217.23,217.16,7.17723084]
[1736047008510,11.52463084,217.23,217.18,2.3025]